fUSD/lending_fUSD_20250208
["ID","MTS","AMOUNT","RATE_DAILY","PERIOD"]
[352261489,1739020258599,-500.0,0.00010392,2]
[352261490,1739020258609,-741.2,0.00010392,2]
[352261491,1739020258618,-500.0,0.00010392,2]
[352261492,1739020258627,-500.0,0.00010392,2]
[352261493,1739020258637,-500.0,0.00010392,2]
[352261494,1739020258647,-500.0,0.00010392,2]
[352261495,1739020258656,-1164.1,0.00010392,2]
[352261496,1739020258666,-447.0957526,0.00010392,2]
[352261497,1739020258675,-562.63,0.00010392,2]
[352261498,1739020258684,-500.0,0.00010392,2]
[352261499,1739020258693,-500.0,0.00010392,2]
[352261500,1739020258707,-500.0,0.00010392,2]
[352261501,1739020258716,-500.0,0.00010392,2]
[352261502,1739020258725,-500.0,0.00010392,2]
[352261503,1739020258735,-500.0,0.00010392,2]
[352261504,1739020258744,-526.65331739,0.00010392,2]
[352261505,1739020258753,-500.0,0.00010392,2]
[352261506,1739020258762,-500.0,0.00010392,2]
[352261507,1739020258771,-500.0,0.00010392,2]
[352261508,1739020258780,-500.0,0.00010392,2]
[352261509,1739020258789,-508.31,0.00010392,2]
[352261510,1739020258798,-500.0,0.00010392,2]
[352261511,1739020258808,-500.0,0.00010392,2]
[352261512,1739020258823,-500.0,0.00010392,2]
[352261513,1739020258835,-500.0,0.00010392,2]
[352261514,1739020258843,-594.56,0.00010392,2]
[352261515,1739020258853,-500.0,0.00010392,2]
[352261516,1739020258862,-500.0,0.00010392,2]
[352261517,1739020258871,-562.87,0.00010392,2]
[352261518,1739020258880,-522.4,0.00010392,2]
[352261519,1739020258890,-675.82,0.00010392,2]
[352261520,1739020258899,-500.0,0.00010392,2]
[352261521,1739020258908,-651.33,0.00010392,2]
[352261522,1739020258917,-500.0,0.00010392,2]
[352261523,1739020258926,-1381.39,0.00010392,2]
[352261524,1739020258935,-500.0,0.00010392,2]
[352261525,1739020258944,-500.0,0.00010392,2]
[352261526,1739020258953,-500.0,0.00010392,2]
[352261527,1739020258962,-500.0,0.00010392,2]
[352261528,1739020258971,-500.0,0.00010392,2]
[352261529,1739020258980,-503.90268827,0.00010392,2]
[352261530,1739020258989,-983.11,0.00010392,2]
[352261531,1739020258998,-645.15699642,0.00010392,2]
[352261532,1739020259008,-500.0,0.00010392,2]
[352261533,1739020259017,-500.0,0.00010392,2]
[352261534,1739020259027,-500.0,0.00010392,2]
[352261535,1739020259036,-550.73,0.00010392,2]
[352261536,1739020259045,-500.0,0.00010392,2]
[352261537,1739020259054,-628.10999998,0.00010392,2]
[352261538,1739020259063,-500.0,0.00010392,2]
[352261539,1739020259072,-500.0,0.00010392,2]
[352261540,1739020259082,-500.0,0.00010392,2]
[352261541,1739020259091,-500.0,0.00010392,2]
[352261542,1739020259101,-517.98,0.00010392,2]
[352261543,1739020259111,-500.0,0.00010392,2]
[352261544,1739020259120,-500.0,0.00010392,2]
[352261545,1739020259129,-500.0,0.00010392,2]
[352261546,1739020259138,-500.0,0.00010392,2]
[352261547,1739020259147,-500.0,0.00010392,2]
[352261548,1739020259157,-500.0,0.00010392,2]
[352261549,1739020259166,-500.0,0.00010392,2]
[352261550,1739020259175,-500.0,0.00010392,2]
[352261551,1739020259184,-500.0,0.00010392,2]
[352261552,1739020259193,-500.0,0.00010392,2]
[352261553,1739020259203,-788.09,0.00010392,2]
[352261554,1739020259213,-1087.6,0.00010392,2]
[352261555,1739020259222,-1302.96,0.00010392,2]
[352261556,1739020259231,-1217.75,0.00010392,2]
[352261557,1739020259240,-500.0,0.00010392,2]
[352261558,1739020259250,-500.0,0.00010392,2]
[352261559,1739020259259,-273.00659887,0.00010392,2]
[352261560,1739020259268,-500.0,0.00010392,2]
[352261561,1739020259277,-222.47773545,0.00010392,2]
[352261562,1739020259286,-500.0,0.00010392,2]
[352261563,1739020259295,-500.0,0.00010392,2]
[352261564,1739020259305,-500.0,0.00010392,2]
[352261565,1739020259314,-500.0,0.00010392,2]
[352261566,1739020259324,-500.0,0.00010392,2]
[352261567,1739020259334,-583.17,0.00010392,2]
[352261568,1739020259343,-520.28,0.00010392,2]
[352261569,1739020259352,-1271.03,0.00010392,2]
[352261570,1739020259361,-500.0,0.00010392,2]
[352261571,1739020259370,-500.0,0.00010392,2]
[352261572,1739020259379,-500.0,0.00010392,2]
[352261573,1739020259388,-886.29,0.00010392,2]
[352261574,1739020259397,-500.0,0.00010392,2]
[352261575,1739020259406,-500.0,0.00010392,2]
[352261576,1739020259415,-500.0,0.00010392,2]
[352261577,1739020259424,-583.63,0.00010392,2]
[352261578,1739020259434,-1332.49,0.00010392,2]
[352261579,1739020259443,-640.0,0.00010392,2]
[352261580,1739020259452,-500.0,0.00010392,2]
[352261581,1739020259461,-500.0,0.00010392,2]
[352261582,1739020259470,-727.59,0.00010392,2]
[352261583,1739020259479,-500.0,0.00010392,2]
[352261584,1739020259488,-500.0,0.00010392,2]
[352261585,1739020259498,-557.29,0.00010392,2]
[352261586,1739020259507,-500.0,0.00010392,2]
[352261587,1739020259517,-500.0,0.00010392,2]
[352261588,1739020259526,-977.44,0.00010392,2]
[352261589,1739020259535,-500.0,0.00010392,2]
[352261590,1739020259544,-500.0,0.00010392,2]
[352261591,1739020259553,-1335.82,0.00010392,2]
[352261592,1739020259563,-500.0,0.00010392,2]
[352261593,1739020259572,-500.0,0.00010392,2]
[352261594,1739020259582,-500.0,0.00010392,2]
[352261595,1739020259591,-500.0,0.00010392,2]
[352261596,1739020259601,-526.78,0.00010392,2]
[352261597,1739020259610,-500.0,0.00010392,2]
[352261598,1739020259619,-1098.45,0.00010392,2]
[352261599,1739020259629,-549.34,0.00010392,2]
[352261600,1739020259638,-544.67,0.00010392,2]
[352261601,1739020259648,-500.0,0.00010392,2]
[352261602,1739020259657,-500.0,0.00010392,2]
[352261603,1739020259666,-571.03,0.00010392,2]
[352261604,1739020259675,-500.0,0.00010392,2]
[352261605,1739020259685,-500.0,0.00010392,2]
[352261606,1739020259695,-901.64,0.00010392,2]
[352261607,1739020259704,-500.0,0.00010392,2]
[352261608,1739020259713,-500.0,0.00010392,2]
[352261609,1739020259723,-500.0,0.00010392,2]
[352261610,1739020259732,-672.29,0.00010392,2]
[352261611,1739020259741,-500.0,0.00010392,2]
[352261612,1739020259750,-500.0,0.00010392,2]
[352261613,1739020259759,-500.0,0.00010392,2]
[352261614,1739020259769,-560.41,0.00010392,2]
[352261615,1739020259778,-500.0,0.00010392,2]
[352261616,1739020259787,-581.63,0.00010392,2]
[352261617,1739020259796,-500.0,0.00010392,2]
[352261618,1739020259806,-500.0,0.00010392,2]
[352261619,1739020259819,-551.18,0.00010392,2]
[352261620,1739020259828,-500.0,0.00010392,2]
[352261621,1739020259838,-511.63,0.00010392,2]
[352261622,1739020259847,-1312.13,0.00010392,2]
[352261623,1739020259856,-581.18,0.00010392,2]
[352261624,1739020259867,-500.0,0.00010392,2]
[352261625,1739020259876,-500.0,0.00010392,2]
[352261626,1739020259885,-500.0,0.00010392,2]
[352261627,1739020259898,-500.0,0.00010392,2]
[352261628,1739020259908,-500.0,0.00010392,2]
[352261629,1739020259917,-1103.92,0.00010392,2]
[352261630,1739020259927,-256.09416321,0.00010392,2]
[352261631,1739020259936,-500.0,0.00010392,2]
[352261632,1739020259946,-500.0,0.00010392,2]
[352261633,1739020259954,-500.0,0.00010392,2]
[352261634,1739020259964,-500.0,0.00010392,2]
[352261635,1739020259974,-500.0,0.00010392,2]
[352261636,1739020259983,-500.0,0.00010392,2]
[352261637,1739020259993,-500.0,0.00010392,2]
[352261638,1739020260002,-506.44248603,0.00010392,2]
[352261639,1739020260011,-1044.81,0.00010392,2]
[352261640,1739020260021,-500.0,0.00010392,2]
[352261641,1739020260031,-500.0,0.00010392,2]
[352261642,1739020260040,-500.0,0.00010392,2]
[352261643,1739020260050,-500.0,0.00010392,2]
[352261644,1739020260060,-500.0,0.00010392,2]
[352261645,1739020260071,-605.64,0.00010392,2]
[352261646,1739020260081,-1097.71,0.00010392,2]
[352261647,1739020260091,-1112.79,0.00010392,2]
[352261648,1739020260101,-500.0,0.00010392,2]
[352261649,1739020260110,-500.0,0.00010392,2]
[352261650,1739020260121,-500.0,0.00010392,2]
[352261651,1739020260130,-500.0,0.00010392,2]
[352261652,1739020260140,-384.36885087,0.00010392,2]
[352261653,1739020260149,-524.13,0.00010392,2]
[352261654,1739020260159,-500.0,0.00010392,2]
[352261655,1739020260168,-502.77975766,0.00010392,2]
[352261656,1739020260178,-500.0,0.00010392,2]
[352261657,1739020260187,-500.0,0.00010392,2]
[352261658,1739020260197,-500.0,0.00010392,2]
[352261659,1739020260207,-564.53,0.00010392,2]
[352261660,1739020260217,-500.0,0.00010392,2]
[352261661,1739020260227,-1123.58,0.00010392,2]
[352261662,1739020260237,-500.0,0.00010392,2]
[352261663,1739020260247,-500.0,0.00010392,2]
[352261664,1739020260256,-500.0,0.00010392,2]
[352261665,1739020260266,-1041.77,0.00010392,2]
[352261666,1739020260275,-500.0,0.00010392,2]
[352261667,1739020260284,-500.0,0.00010392,2]
[352261668,1739020260294,-750.8,0.00010392,2]
[352261669,1739020260303,-1069.05,0.00010392,2]
[352261670,1739020260313,-1055.59,0.00010392,2]
[352261671,1739020260322,-500.0,0.00010392,2]
[352261672,1739020260331,-562.2,0.00010392,2]
[352261673,1739020260341,-885.55,0.00010392,2]
[352261674,1739020260350,-500.0,0.00010392,2]
[352261675,1739020260360,-500.0,0.00010392,2]
[352261676,1739020260369,-1227.89,0.00010392,2]
[352261677,1739020260378,-500.0,0.00010392,2]
[352261678,1739020260387,-500.0,0.00010392,2]
[352261679,1739020260396,-500.0,0.00010392,2]
[352261680,1739020260406,-500.0,0.00010392,2]
[352261681,1739020260416,-500.0,0.00010392,2]
[352261682,1739020260425,-500.0,0.00010392,2]
[352261683,1739020260434,-500.0,0.00010392,2]
[352261684,1739020260443,-500.0,0.00010392,2]
[352261685,1739020260452,-1428.69,0.00010392,2]
[352261686,1739020260461,-500.0,0.00010392,2]
[352261687,1739020260470,-1318.66,0.00010392,2]
[352261688,1739020260479,-503.42109767,0.00010392,2]
[352261689,1739020260488,-500.0,0.00010392,2]
[352261690,1739020260498,-909.39,0.00010392,2]
[352261691,1739020260507,-500.0,0.00010392,2]
[352261692,1739020260516,-500.0,0.00010392,2]
[352261693,1739020260525,-500.0,0.00010392,2]
[352261694,1739020260535,-500.0,0.00010392,2]
[352261695,1739020260544,-741.27,0.00010392,2]
[352261696,1739020260553,-500.0,0.00010392,2]
[352261697,1739020260563,-609.95,0.00010392,2]
[352261698,1739020260573,-1449.6,0.00010392,2]
[352261699,1739020260582,-596.33,0.00010392,2]
[352261700,1739020260591,-500.0,0.00010392,2]
[352261701,1739020260600,-500.0,0.00010392,2]
[352261702,1739020260610,-500.0,0.00010392,2]
[352261703,1739020260619,-833.9,0.00010392,2]
[352261704,1739020260628,-768.73,0.00010392,2]
[352261705,1739020260637,-644.8,0.00010392,2]
[352261706,1739020260646,-500.0,0.00010392,2]
[352261707,1739020260655,-1205.53,0.00010392,2]
[352261708,1739020260664,-500.0,0.00010392,2]
[352261709,1739020260673,-660.9,0.00010392,2]
[352261710,1739020260683,-529.36,0.00010392,2]
[352261711,1739020260692,-1285.09,0.00010392,2]
[352261712,1739020260701,-3583.76,0.00010392,2]
[352261713,1739020260711,-500.0,0.00010392,2]
[352261714,1739020260720,-500.0,0.00010392,2]
[352261715,1739020260729,-500.0,0.00010392,2]
[352261716,1739020260738,-1379.8,0.00010392,2]
[352261717,1739020260747,-500.0,0.00010392,2]
[352261718,1739020260756,-500.0,0.00010392,2]
[352261719,1739020260765,-995.06,0.00010392,2]
[352261720,1739020260774,-761.85,0.00010392,2]
[352261721,1739020260783,-500.0,0.00010392,2]
[352261722,1739020260792,-1861.18,0.00010392,2]
[352261723,1739020260801,-500.0,0.00010392,2]
[352261724,1739020260814,-767.16,0.00010392,2]
[352261725,1739020260824,-1956.03,0.00010392,2]
[352261726,1739020260833,-500.0,0.00010392,2]
[352261727,1739020260842,-618.51,0.00010392,2]
[352261728,1739020260853,-2847.12,0.00010392,2]
[352261729,1739020260862,-500.0,0.00010392,2]
[352261730,1739020260871,-500.0,0.00010392,2]
[352261731,1739020260880,-1219.15,0.00010392,2]
[352261732,1739020260891,-500.0,0.00010392,2]
[352261733,1739020260900,-500.0,0.00010392,2]
[352261734,1739020260910,-500.0,0.00010392,2]
[352261735,1739020260919,-500.0,0.00010392,2]
[352261736,1739020260928,-1309.52,0.00010392,2]
[352261737,1739020260938,-2233.48,0.00010392,2]
[352261738,1739020260947,-500.0,0.00010392,2]
[352261739,1739020260956,-500.0,0.00010392,2]
[352261740,1739020260965,-629.39,0.00010392,2]
[352261741,1739020260974,-500.0,0.00010392,2]
[352261742,1739020260983,-500.0,0.00010392,2]
[352261743,1739020260993,-500.0,0.00010392,2]
[352261744,1739020261002,-2007.43,0.00010392,2]
[352261745,1739020261011,-1326.46,0.00010392,2]
[352261746,1739020261020,-500.0,0.00010392,2]
[352261747,1739020261029,-500.0,0.00010392,2]
[352261748,1739020261038,-500.0,0.00010392,2]
[352261749,1739020261047,-538.15,0.00010392,2]
[352261750,1739020261056,-672.52,0.00010392,2]
[352261751,1739020261066,-500.0,0.00010392,2]
[352261752,1739020261075,-1070.67,0.00010392,2]
[352261753,1739020261084,-500.0,0.00010392,2]
[352261754,1739020261093,-500.0,0.00010392,2]
[352261755,1739020261103,-500.0,0.00010392,2]
[352261756,1739020261111,-500.0,0.00010392,2]
[352261757,1739020261121,-500.0,0.00010392,2]
[352261758,1739020261130,-500.0,0.00010392,2]
[352261759,1739020261139,-500.0,0.00010392,2]
[352261760,1739020261149,-2270.09,0.00010392,2]
[352261761,1739020261322,-537.41,0.00010392,2]
[352261762,1739020261343,-500.0,0.00010392,2]
[352261763,1739020261353,-500.0,0.00010392,2]
[352261764,1739020261363,-500.0,0.00010392,2]
[352261765,1739020261372,-654.41,0.00010392,2]
[352261766,1739020261382,-500.0,0.00010392,2]
[352261767,1739020261391,-500.0,0.00010392,2]
[352261768,1739020261401,-1624.31,0.00010392,2]
[352261769,1739020261410,-500.0,0.00010392,2]
[352261770,1739020261426,-500.0,0.00010392,2]
[352261771,1739020261435,-500.0,0.00010392,2]
[352261772,1739020261445,-500.0,0.00010392,2]
[352261773,1739020261454,-500.0,0.00010392,2]
[352261774,1739020261463,-500.0,0.00010392,2]
[352261775,1739020261472,-500.0,0.00010392,2]
[352261776,1739020261482,-500.0,0.00010392,2]
[352261777,1739020261491,-500.0,0.00010392,2]
[352261778,1739020261500,-2768.81,0.00010392,2]
[352261779,1739020261510,-840.8,0.00010392,2]
[352261780,1739020261519,-517.09,0.00010392,2]
[352261781,1739020261529,-500.0,0.00010392,2]
[352261782,1739020261538,-3723.14,0.00010392,2]
[352261783,1739020261547,-500.0,0.00010392,2]
[352261784,1739020261556,-605.04,0.00010392,2]
[352261785,1739020261565,-1535.65,0.00010392,2]
[352261786,1739020261575,-982.02,0.00010392,2]
[352261787,1739020261583,-500.0,0.00010392,2]
[352261788,1739020261592,-1059.77,0.00010392,2]
[352261789,1739020261600,-500.0,0.00010392,2]
[352261790,1739020261609,-1288.85,0.00010392,2]
[352261791,1739020261619,-592.05,0.00010392,2]
[352261792,1739020261628,-858.39,0.00010392,2]
[352261793,1739020261638,-500.0,0.00010392,2]
[352261794,1739020261647,-500.0,0.00010392,2]
[352261795,1739020261657,-2635.72,0.00010392,2]
[352261796,1739020261667,-500.0,0.00010392,2]
[352261797,1739020261676,-500.0,0.00010392,2]
[352261798,1739020261685,-1294.22,0.00010392,2]
[352261799,1739020261695,-638.8,0.00010392,2]
[352261800,1739020261704,-509.35586572,0.00010392,2]
[352261801,1739020261714,-503.12,0.00010392,2]
[352261802,1739020261723,-500.0,0.00010392,2]
[352261803,1739020261733,-500.0,0.00010392,2]
[352261804,1739020261742,-1426.1,0.00010392,2]
[352261805,1739020261752,-500.0,0.00010392,2]
[352261806,1739020261761,-500.0,0.00010393,2]
[352261807,1739020261771,-500.0,0.00010393,2]
[352261808,1739020261780,-500.0,0.00010393,2]
[352261809,1739020261790,-500.0,0.00010393,2]
[352261810,1739020261799,-500.0,0.00010393,2]
[352261811,1739020261809,-500.0,0.00010393,2]
[352261812,1739020261822,-500.0,0.00010393,2]
[352261813,1739020261831,-500.0,0.00010393,2]
[352261814,1739020261841,-500.0,0.00010393,2]
[352261815,1739020261850,-500.0,0.00010393,2]
[352261816,1739020261862,-500.0,0.00010393,2]
[352261817,1739020261871,-500.0,0.00010393,2]
[352261818,1739020261880,-500.0,0.00010393,2]
[352261819,1739020261891,-500.0,0.00010393,2]
[352261820,1739020261900,-500.0,0.00010393,2]
[352261821,1739020261910,-500.0,0.00010393,2]
[352261822,1739020261919,-500.0,0.00010393,2]
[352261823,1739020261929,-500.0,0.00010393,2]
[352261824,1739020261938,-500.0,0.00010393,2]
[352261825,1739020261947,-500.0,0.00010393,2]
[352261826,1739020261956,-500.0,0.00010393,2]
[352261827,1739020261965,-500.0,0.00010393,2]
[352261828,1739020261975,-500.0,0.00010393,2]
[352261829,1739020261984,-500.0,0.00010393,2]
[352261830,1739020261994,-500.0,0.00010393,2]
[352261831,1739020262003,-500.0,0.00010393,2]
[352261832,1739020262012,-500.0,0.00010393,2]
[352261833,1739020262022,-503.96605097,0.00010393,2]
[352261834,1739020262031,-157.54231981,0.00010393,2]
[352261835,1739020262041,-500.0,0.00010393,2]
[352261836,1739020262051,-502.67335528,0.00010393,2]
[352261837,1739020262060,-500.0,0.00010393,2]
[352261838,1739020262070,-500.0,0.00010393,2]
[352261839,1739020262080,-500.0,0.00010393,2]
[352261840,1739020262090,-564.28,0.00010393,2]
[352261841,1739020262099,-500.0,0.00010393,2]
[352261842,1739020262108,-500.0,0.00010393,2]
[352261843,1739020262117,-510.38397624,0.00010393,2]
[352261844,1739020262127,-500.0,0.00010393,2]
[352261845,1739020262136,-500.0,0.00010393,2]
[352261846,1739020262145,-1059.26,0.00010393,2]
[352261847,1739020262154,-500.0,0.00010393,2]
[352261848,1739020262163,-500.0,0.00010393,2]
[352261849,1739020262172,-500.0,0.00010393,2]
[352261850,1739020262181,-500.0,0.00010393,2]
[352261851,1739020262190,-500.0,0.00010393,2]
[352261852,1739020262200,-702.17,0.00010393,2]
[352261853,1739020262209,-262.91119503,0.00010393,2]
[352261854,1739020262218,-500.0,0.00010393,2]
[352261855,1739020262227,-500.0,0.00010393,2]
[352261856,1739020262236,-616.58046746,0.00010393,2]
[352261857,1739020262246,-500.0,0.00010393,2]
[352261858,1739020262255,-500.0,0.00010393,2]
[352261859,1739020262265,-500.0,0.00010393,2]
[352261860,1739020262274,-546.75488494,0.00010393,2]
[352261861,1739020262283,-500.0,0.00010393,2]
[352261862,1739020262292,-500.0,0.00010393,2]
[352261863,1739020262301,-532.9,0.00010393,2]
[352261864,1739020262311,-500.0,0.00010393,2]
[352261865,1739020262321,-500.0,0.00010393,2]
[352261866,1739020262330,-500.0,0.00010393,2]
[352261867,1739020262339,-339.23427225,0.00010393,2]
[352261868,1739020262348,-500.0,0.00010393,2]
[352261869,1739020262358,-500.0,0.00010393,2]
[352261870,1739020262367,-500.0,0.00010393,2]
[352261871,1739020262377,-500.0,0.00010393,2]
[352261872,1739020262386,-500.0,0.00010393,2]
[352261873,1739020262395,-500.0,0.00010393,2]
[352261874,1739020262404,-471.53123108,0.00010393,2]
[352261875,1739020262414,-500.0,0.00010393,2]
[352261876,1739020262424,-500.0,0.00010393,2]
[352261877,1739020262433,-500.0,0.00010393,2]
[352261878,1739020262442,-483.28443337,0.00010393,2]
[352261879,1739020262452,-500.0,0.00010393,2]
[352261880,1739020262462,-500.0,0.00010393,2]
[352261881,1739020262471,-500.0,0.00010393,2]
[352261882,1739020262481,-500.0,0.00010393,2]
[352261883,1739020262490,-500.0,0.00010393,2]
[352261884,1739020262500,-500.0,0.00010393,2]
[352261885,1739020262510,-500.0,0.00010393,2]
[352261886,1739020262521,-1154.57,0.00010393,2]
[352261887,1739020262531,-532.97,0.00010393,2]
[352261888,1739020262541,-1608.84,0.00010393,2]
[352261889,1739020262551,-7652.56,0.00010393,2]
[352261890,1739020262560,-1869.74,0.00010393,2]
[352261891,1739020262571,-1706.76,0.00010393,2]
[352261892,1739020262580,-500.0,0.00010393,2]
[352261893,1739020262590,-500.0,0.00010393,2]
[352261894,1739020262600,-1406.57,0.00010393,2]
[352261895,1739020262610,-897.45,0.00010393,2]
[352261896,1739020262619,-500.0,0.00010393,2]
[352261897,1739020262629,-500.0,0.00010393,2]
[352261898,1739020262640,-1841.4,0.00010393,2]
[352261899,1739020262650,-500.0,0.00010393,2]
[352261900,1739020262660,-500.0,0.00010393,2]
[352261901,1739020262670,-2769.97,0.00010393,2]
[352261902,1739020262679,-500.0,0.00010393,2]
[352261903,1739020262689,-8679.82,0.00010393,2]
[352261904,1739020262699,-500.0,0.00010393,2]
[352261905,1739020262707,-500.0,0.00010393,2]
[352261906,1739020262716,-1313.85,0.00010393,2]
[352261907,1739020262726,-500.0,0.00010393,2]
[352261908,1739020262736,-500.0,0.00010393,2]
[352261909,1739020262746,-500.0,0.00010393,2]
[352261910,1739020262756,-559.79,0.00010393,2]
[352261911,1739020262767,-1447.03,0.00010393,2]
[352261912,1739020262776,-500.0,0.00010393,2]
[352261913,1739020262786,-514.84150214,0.00010393,2]
[352261914,1739020262795,-500.0,0.00010393,2]
[352261915,1739020262805,-1223.94,0.00010393,2]
[352261916,1739020262818,-2822.14,0.00010393,2]
[352261917,1739020262828,-500.0,0.00010393,2]
[352261918,1739020262837,-500.0,0.00010393,2]
[352261919,1739020262847,-500.0,0.00010393,2]
[352261920,1739020262856,-571.96,0.00010393,2]
[352261921,1739020262867,-926.34,0.00010393,2]
[352261922,1739020262877,-500.0,0.00010393,2]
[352261923,1739020262887,-2032.95,0.00010393,2]
[352261924,1739020262899,-2270.5,0.00010393,2]
[352261925,1739020262908,-1161.36,0.00010393,2]
[352261926,1739020262917,-1381.95,0.00010393,2]
[352261927,1739020262927,-500.0,0.00010393,2]
[352261928,1739020262937,-2231.84,0.00010393,2]
[352261929,1739020262947,-2534.04,0.00010393,2]
[352261930,1739020262957,-469.45638811,0.00010394,2]
[352261931,1739020262968,-505.30812751,0.00010394,2]
[352261932,1739020262978,-500.0,0.00010394,2]
[352261933,1739020262988,-538.34,0.00010394,2]
[352261934,1739020262998,-1221.05,0.00010394,2]
[352261935,1739020263008,-506.59,0.00010394,2]
[352261936,1739020263017,-612.21,0.00010394,2]
[352261937,1739020263027,-1190.17,0.00010394,2]
[352261938,1739020263038,-1180.13,0.00010394,2]
[352261939,1739020263049,-1496.78,0.00010394,2]
[352261940,1739020263060,-1332.66,0.00010394,2]
[352261941,1739020263075,-630.09,0.00010394,2]
[352261942,1739020263087,-539.19,0.00010394,2]
[352261943,1739020263098,-575.47,0.00010394,2]
[352261944,1739020263109,-500.0,0.00010394,2]
[352261945,1739020263119,-1286.54,0.00010394,2]
[352261946,1739020263130,-561.04,0.00010394,2]
[352261947,1739020263141,-1275.18,0.00010394,2]
[352261948,1739020263150,-1233.34,0.00010394,2]
[352261949,1739020263161,-501.8,0.00010394,2]
[352261950,1739020263171,-581.09,0.00010394,2]
[352261951,1739020263182,-1215.43,0.00010394,2]
[352261952,1739020263192,-500.0,0.00010394,2]
[352261953,1739020263203,-500.0,0.00010394,2]
[352261954,1739020263213,-508.2,0.00010394,2]
[352261955,1739020263223,-530.46,0.00010394,2]
[352261956,1739020263233,-653.67,0.00010394,2]
[352261957,1739020263244,-730.4,0.00010394,2]
[352261958,1739020263254,-942.22,0.00010422,2]
[352261959,1739020263264,-257.53577671,0.0001043,2]
[352261960,1739020263274,-7032.54,0.00010475,2]
[352261961,1739020263284,-4559.0,0.00010493,2]
[352261962,1739020263294,-729.12,0.00010528,2]
[352261963,1739020263304,-631.7,0.00010528,2]
[352261964,1739020263315,-2815.16,0.00010528,2]
[352261965,1739020263326,-1087.56,0.00010528,2]
[352261966,1739020263337,-945.46,0.00010528,2]
[352261967,1739020263347,-2118.221808,0.00010528,2]
[352261968,1739020263357,-1230.12,0.00010528,2]
[352261969,1739020263366,-722.84,0.00010528,2]
[352261970,1739020263376,-3025.3,0.00010528,2]
[352261971,1739020263387,-2475.332229,0.00010528,2]
[352261972,1739020263397,-751.39,0.00010528,2]
[352261973,1739020263407,-1508.12,0.00010528,2]
[352261974,1739020263417,-1917.11,0.00010528,2]
[352261975,1739020263426,-500.0,0.00010528,2]
[352261976,1739020263436,-501.54,0.00010528,2]
[352261977,1739020263446,-936.14,0.00010528,2]
[352261978,1739020263455,-1194.46,0.00010528,2]
[352261979,1739020263465,-1511.63,0.00010528,2]
[352261980,1739020263475,-1899.22,0.00010528,2]
[352261981,1739020263485,-1669.03,0.00010528,2]
[352261982,1739020263495,-1125.52,0.00010528,2]
[352261983,1739020263504,-1085.17,0.00010528,2]
[352261984,1739020263514,-2043.74,0.00010528,2]
[352261985,1739020263525,-2568.21,0.00010528,2]
[352261986,1739020263534,-874.81,0.00010528,2]
[352261987,1739020263544,-2104.43,0.00010528,2]
[352261988,1739020263554,-2510.95,0.00010528,2]